fUST/lending_fUST_20250626
["ID","MTS","AMOUNT","RATE_DAILY","PERIOD"]
[367611864,1750872648945,-551.78664175,0.00016986,2]
[367611865,1750872648955,-460.0,0.00016986,2]
[367611866,1750872648966,-460.0,0.00016986,2]
[367611867,1750872648976,-460.0,0.00016986,2]
[367611868,1750872648985,-367.17,0.00016986,2]
[367611869,1750872648995,-1855.62,0.00016986,2]
[367611870,1750872649005,-1253.47,0.00016986,2]
[367611871,1750872649013,-179.67,0.00016986,2]
[367611872,1750872649023,-3008.39,0.00016986,2]
[367611873,1750872649032,-517.07,0.00016986,2]
[367611874,1750872649041,-460.0,0.00016986,2]
[367611875,1750872649051,-460.0,0.00016986,2]
[367611876,1750872649060,-369.39,0.00016986,2]
[367611877,1750872649069,-460.0,0.00016986,2]
[367611878,1750872649079,-460.0,0.00016986,2]
[367611879,1750872649088,-2593.65,0.00016986,2]
[367611880,1750872649097,-1047.33,0.00016986,2]
[367611881,1750872649107,-477.85,0.00016986,2]
[367611882,1750872649116,-572.85,0.00016986,2]
[367611883,1750872649126,-461.15,0.00016986,2]
[367611884,1750872649135,-460.0,0.00016986,2]
[367611885,1750872649143,-3755.75,0.00016986,2]
[367611886,1750872649153,-460.0,0.00016986,2]
[367611887,1750872649162,-460.0,0.00016986,2]
[367611888,1750872649172,-151.0,0.00016986,2]
[367611889,1750872649182,-4122.46,0.00016986,2]
[367611890,1750872649191,-645.89,0.00016986,2]
[367611891,1750872649200,-151.0,0.00016986,2]
[367611892,1750872649210,-278.95227329,0.00016986,2]
[367611893,1750872649219,-567.97,0.00016986,2]
[367611894,1750872649229,-460.0,0.00016986,2]
[367611895,1750872649238,-460.0,0.00016986,2]
[367611896,1750872649248,-460.0,0.00016986,2]
[367611897,1750872649257,-460.0,0.00016986,2]
[367611898,1750872649267,-282.64,0.00016986,2]
[367611899,1750872649277,-460.0,0.00016986,2]
[367611900,1750872649286,-460.0,0.00016986,2]
[367611901,1750872649296,-460.0,0.00016986,2]
[367611902,1750872649305,-1700.67,0.00016986,2]
[367611903,1750872649315,-467.6,0.00016986,2]
[367611904,1750872649324,-460.0,0.00016986,2]
[367611905,1750872649334,-460.0,0.00016986,2]
[367611906,1750872649344,-2709.82,0.00016986,2]
[367611907,1750872649353,-460.0,0.00016986,2]
[367611908,1750872649363,-3209.32,0.00016986,2]
[367611909,1750872649372,-460.0,0.00016986,2]
[367611910,1750872649381,-493.08,0.00016986,2]
[367611911,1750872649391,-1072.75,0.00016986,2]
[367611912,1750872649400,-463.0439847,0.00016986,2]
[367611913,1750872649409,-460.0,0.00016986,2]
[367611914,1750872649419,-460.0,0.00016986,2]
[367611915,1750872649428,-460.0,0.00016986,2]
[367611916,1750872649438,-460.0,0.00016986,2]
[367611917,1750872649447,-3480.43,0.00016986,2]
[367611918,1750872649457,-1565.24,0.00016986,2]
[367611919,1750872649466,-460.0,0.00016986,2]
[367611920,1750872649475,-683.63,0.00016986,2]
[367611921,1750872649485,-460.0,0.00016986,2]
[367611922,1750872649495,-460.0,0.00016986,2]
[367611923,1750872649504,-608.68,0.00016986,2]
[367611924,1750872649514,-1409.86,0.00016986,2]
[367611925,1750872649523,-460.0,0.00016986,2]
[367611926,1750872649533,-823.56,0.00016986,2]
[367611927,1750872649542,-449.45173939,0.00016986,2]
[367611928,1750872649553,-1035.91,0.00016986,2]
[367611929,1750872649562,-460.0,0.00016986,2]
[367611930,1750872649571,-460.0,0.00016986,2]
[367611931,1750872649581,-539.32,0.00016986,2]
[367611932,1750872649590,-460.0,0.00016986,2]
[367611933,1750872649600,-460.0,0.00016986,2]
[367611934,1750872649609,-460.0,0.00016986,2]
[367611935,1750872649619,-460.0,0.00016986,2]
[367611936,1750872649629,-472.97,0.00016986,2]
[367611937,1750872649638,-1678.89,0.00016986,2]
[367611938,1750872649647,-460.0,0.00016986,2]
[367611939,1750872649657,-460.0,0.00016986,2]
[367611940,1750872649666,-460.0,0.00016986,2]
[367611941,1750872649675,-497.29,0.00016986,2]
[367611942,1750872649684,-460.0,0.00016986,2]
[367611943,1750872649693,-503.36,0.00016986,2]
[367611944,1750872649703,-954.13,0.00016986,2]
[367611945,1750872649712,-2662.82,0.00016986,2]
[367611946,1750872649721,-460.0,0.00016986,2]
[367611947,1750872649730,-460.0,0.00016986,2]
[367611948,1750872649741,-460.0,0.00016986,2]
[367611949,1750872649750,-460.0,0.00016986,2]
[367611950,1750872649760,-675.08,0.00016986,2]
[367611951,1750872649769,-799.82,0.00016986,2]
[367611952,1750872649778,-460.0,0.00016986,2]
[367611953,1750872649788,-460.0,0.00016986,2]
[367611954,1750872649797,-460.0,0.00016986,2]
[367611955,1750872649807,-769.54,0.00016986,2]
[367611956,1750872649816,-809.04,0.00016986,2]
[367611957,1750872649825,-1230.8,0.00016986,2]
[367611958,1750872649834,-460.0,0.00016986,2]
[367611959,1750872649843,-460.0,0.00016986,2]
[367611960,1750872649852,-460.0,0.00016986,2]
[367611961,1750872649862,-460.0,0.00016986,2]
[367611962,1750872649871,-1710.27,0.00016986,2]
[367611963,1750872649883,-631.38,0.00016986,2]
[367611964,1750872649892,-1868.64,0.00016986,2]
[367611965,1750872649902,-568.02,0.00016986,2]
[367611966,1750872649911,-460.0,0.00016986,2]
[367611967,1750872649921,-460.0,0.00016986,2]
[367611968,1750872649930,-462.05117041,0.00016986,2]
[367611969,1750872649939,-1081.41,0.00016986,2]
[367611970,1750872649949,-460.0,0.00016986,2]
[367611971,1750872649958,-570.06,0.00016986,2]
[367611972,1750872649968,-460.0,0.00016986,2]
[367611973,1750872649977,-460.0,0.00016986,2]
[367611974,1750872649986,-460.0,0.00016986,2]
[367611975,1750872649996,-460.0,0.00016986,2]
[367611976,1750872650005,-460.0,0.00016986,2]
[367611977,1750872650014,-460.0,0.00016986,2]
[367611978,1750872650023,-460.0,0.00016986,2]
[367611979,1750872650032,-460.0,0.00016986,2]
[367611980,1750872650041,-460.0,0.00016986,2]
[367611981,1750872650051,-460.0,0.00016986,2]
[367611982,1750872650060,-460.0,0.00016986,2]
[367611983,1750872650070,-460.0,0.00016986,2]
[367611984,1750872650079,-1055.6,0.00016986,2]
[367611985,1750872650088,-460.0,0.00016986,2]
[367611986,1750872650097,-707.38,0.00016986,2]
[367611987,1750872650107,-460.0,0.00016986,2]
[367611988,1750872650116,-328.82839782,0.00017015,2]
[367611989,1750872650125,-151.0,0.00017023,2]
[367611990,1750872650135,-151.0,0.00017023,2]
[367611991,1750872650145,-151.0,0.00017023,2]
[367611992,1750872650155,-151.0,0.00017023,2]
[367611993,1750872650165,-157.989329,0.00017023,2]
[367611994,1750872650174,-500.0,0.00017033,2]
[367611995,1750872650184,-500.40216454,0.00017033,2]
[367611996,1750872650193,-412.78763217,0.00017034,2]
[367611997,1750872650202,-500.0,0.00017034,2]
[367611998,1750872650212,-500.0,0.00017034,2]
[367611999,1750872650221,-500.43898569,0.00017034,2]
[367612000,1750872650230,-374.32370989,0.00017034,2]
[367612001,1750872650240,-500.0,0.00017034,2]
[367612002,1750872650249,-500.0,0.00017034,2]
[367612003,1750872650259,-500.0,0.00017034,2]
[367612004,1750872650269,-500.0,0.00017034,2]
[367612005,1750872650280,-500.0,0.00017045,2]
[367612006,1750872650290,-500.0,0.00017045,2]
[367612007,1750872650299,-500.0,0.00017045,2]
[367612008,1750872650309,-500.0,0.00017045,2]
[367612009,1750872650317,-500.0,0.00017045,2]
[367612010,1750872650327,-500.0,0.00017045,2]
[367612011,1750872650336,-500.0,0.00017067,2]
[367612012,1750872650346,-500.0,0.00017067,2]
[367612013,1750872650355,-500.0,0.00017086,2]
[367612014,1750872650365,-500.0,0.00017086,2]
[367612015,1750872650374,-500.0,0.00017086,2]
[367612016,1750872650384,-500.0,0.00017086,2]
[367612017,1750872650396,-502.40315064,0.00017087,2]
[367612018,1750872650405,-500.0,0.00017087,2]
[367612019,1750872650416,-500.0,0.00017087,2]
[367612020,1750872650425,-5290.0,0.00017097,2]
[367612021,1750872650435,-168.0,0.00017146,2]
[367612022,1750872650446,-1358.29567131,0.0001716,2]
[367612023,1750872650456,-4085.61089755,0.00017176,2]
[367612024,1750872650466,-168.0,0.00017195,2]
[367612025,1750872650476,-305.8886734,0.00017206,2]
[367612026,1750872650485,-151.0,0.00017215,2]
[367612027,1750872650497,-151.0,0.00017215,2]
[367612028,1750872650507,-177.74502,0.00017215,2]
[367612029,1750872650516,-278.915758,0.00017215,2]
[367612030,1750872650526,-151.0,0.00017215,2]
[367612031,1750872650535,-151.0,0.00017215,2]
[367612032,1750872650544,-160.0,0.00017223,2]
[367612033,1750872650553,-213.69531788,0.00017223,2]
[367612034,1750872650562,-425.18553072,0.00017223,2]
[367612035,1750872650572,-160.0,0.00017223,2]
[367612036,1750872650581,-160.0,0.00017223,2]
[367612037,1750872650590,-160.0,0.00017223,2]
[367612038,1750872650599,-836.86812089,0.00017223,2]
[367612039,1750872650609,-12558.06783089,0.00017223,2]
[367612040,1750872650618,-230.22714675,0.00017223,2]
[367612041,1750872650628,-160.0,0.00017223,2]
[367612042,1750872650638,-846.80634355,0.00017223,2]
[367612043,1750872650647,-524.21181985,0.00017227,2]
[367612044,1750872650657,-160.0,0.00017227,2]
[367612045,1750872650666,-500.0,0.00017237,2]
[367612046,1750872650675,-500.0,0.00017237,2]
[367612047,1750872650685,-540.73312332,0.00017237,2]
[367612048,1750872650694,-500.0,0.00017243,2]
[367612049,1750872650703,-568.0,0.00017254,2]
[367612050,1750872650713,-1139.36927136,0.00017258,2]
[367612051,1750872650723,-460.0,0.0001726,2]
[367612052,1750872650732,-460.0,0.0001726,2]
[367612053,1750872650744,-319.0,0.0001726,2]
[367612054,1750872650753,-235.62633417,0.0001726,2]
[367612055,1750872650762,-460.0,0.0001726,2]
[367612056,1750872650770,-460.0,0.0001726,2]
[367612057,1750872650780,-460.0,0.0001726,2]
[367612058,1750872650790,-434.73465623,0.0001726,2]
[367612059,1750872650799,-460.0,0.0001726,2]
[367612060,1750872650808,-460.0,0.0001726,2]
[367612061,1750872650818,-202.17,0.0001726,2]
[367612062,1750872650827,-151.0,0.0001726,2]
[367612063,1750872650837,-460.0,0.0001726,2]
[367612064,1750872650847,-460.0,0.0001726,2]
[367612065,1750872650856,-460.0,0.0001726,2]
[367612066,1750872650866,-151.0,0.0001726,2]
[367612067,1750872650875,-460.0,0.0001726,2]
[367612068,1750872650885,-460.0,0.0001726,2]
[367612069,1750872650894,-460.0,0.0001726,2]
[367612070,1750872650903,-460.0,0.0001726,2]
[367612071,1750872650912,-768.57,0.0001726,2]
[367612072,1750872650922,-460.0,0.0001726,2]
[367612073,1750872650931,-151.0,0.0001726,2]
[367612074,1750872650941,-759.26,0.0001726,2]
[367612075,1750872650950,-460.0,0.0001726,2]
[367612076,1750872650959,-460.0,0.0001726,2]
[367612077,1750872650968,-151.0,0.0001726,2]
[367612078,1750872650977,-151.0,0.0001726,2]
[367612079,1750872650986,-1200.78,0.0001726,2]
[367612080,1750872650998,-460.0,0.0001726,2]
[367612081,1750872651008,-460.0,0.0001726,2]
[367612082,1750872651017,-460.0,0.0001726,2]
[367612083,1750872651025,-460.0,0.0001726,2]
[367612084,1750872651033,-460.0,0.0001726,2]
[367612085,1750872651042,-460.0,0.0001726,2]
[367612086,1750872651051,-460.0,0.0001726,2]
[367612087,1750872651060,-556.62,0.0001726,2]
[367612088,1750872651069,-488.41,0.0001726,2]
[367612089,1750872651078,-460.0,0.0001726,2]
[367612090,1750872651087,-460.0,0.0001726,2]
[367612091,1750872651096,-249.37,0.0001726,2]
[367612092,1750872651105,-151.0,0.0001726,2]
[367612093,1750872651115,-460.0,0.0001726,2]
[367612094,1750872651124,-460.0,0.0001726,2]
[367612095,1750872651133,-460.0,0.0001726,2]
[367612096,1750872651142,-524.84325876,0.0001726,2]
[367612097,1750872651151,-460.0,0.0001726,2]
[367612098,1750872651160,-460.0,0.0001726,2]
[367612099,1750872651169,-460.0,0.0001726,2]
[367612100,1750872651179,-570.73,0.0001726,2]
[367612101,1750872651188,-460.0,0.0001726,2]
[367612102,1750872651198,-460.0,0.0001726,2]
[367612103,1750872651207,-254.054618,0.0001726,2]
[367612104,1750872651216,-254.054618,0.0001726,2]
[367612105,1750872651226,-151.0,0.0001726,2]
[367612106,1750872651235,-151.0,0.0001726,2]
[367612107,1750872651247,-482.54,0.0001726,2]
[367612108,1750872651257,-179.842334,0.0001726,2]
[367612109,1750872651268,-562.27,0.0001726,2]
[367612110,1750872651278,-179.842334,0.0001726,2]
[367612111,1750872651287,-460.0,0.0001726,2]
[367612112,1750872651297,-460.0,0.0001726,2]
[367612113,1750872651447,-460.0,0.0001726,2]
[367612114,1750872651456,-460.0,0.0001726,2]
[367612115,1750872651466,-1855.62,0.0001726,2]
[367612116,1750872651475,-1253.47,0.0001726,2]
[367612117,1750872651485,-200.42665,0.0001726,2]
[367612118,1750872651497,-3008.39,0.0001726,2]
[367612119,1750872651506,-517.07,0.0001726,2]
[367612120,1750872651515,-460.0,0.0001726,2]
[367612121,1750872651524,-460.0,0.0001726,2]
[367612122,1750872651533,-460.0,0.0001726,2]
[367612123,1750872651542,-2593.65,0.0001726,2]
[367612124,1750872651551,-1047.33,0.0001726,2]
[367612125,1750872651561,-477.85,0.0001726,2]
[367612126,1750872651569,-572.85,0.0001726,2]
[367612127,1750872651578,-461.15,0.0001726,2]
[367612128,1750872651587,-460.0,0.0001726,2]
[367612129,1750872651596,-3755.75,0.0001726,2]
[367612130,1750872651606,-460.0,0.0001726,2]
[367612131,1750872651614,-460.0,0.0001726,2]
[367612132,1750872651624,-151.0,0.0001726,2]
[367612133,1750872651633,-4122.46,0.0001726,2]
[367612134,1750872651643,-645.89,0.0001726,2]
[367612135,1750872651652,-151.0,0.0001726,2]
[367612136,1750872651663,-567.97,0.0001726,2]
[367612137,1750872651672,-460.0,0.0001726,2]
[367612138,1750872651681,-460.0,0.0001726,2]
[367612139,1750872651690,-460.0,0.0001726,2]
[367612140,1750872651699,-460.0,0.0001726,2]
[367612141,1750872651709,-460.0,0.0001726,2]
[367612142,1750872651718,-460.0,0.0001726,2]
[367612143,1750872651727,-1700.67,0.0001726,2]
[367612144,1750872651737,-467.6,0.0001726,2]
[367612145,1750872651747,-460.0,0.0001726,2]
[367612146,1750872651757,-2709.82,0.0001726,2]
[367612147,1750872651766,-460.0,0.0001726,2]
[367612148,1750872651774,-3209.32,0.0001726,2]
[367612149,1750872651784,-460.0,0.0001726,2]
[367612150,1750872651793,-1072.75,0.0001726,2]
[367612151,1750872651802,-460.0,0.0001726,2]
[367612152,1750872651811,-460.0,0.0001726,2]
[367612153,1750872651820,-3480.43,0.0001726,2]
[367612154,1750872651830,-1565.24,0.0001726,2]
[367612155,1750872651839,-683.63,0.0001726,2]
[367612156,1750872651847,-460.0,0.0001726,2]
[367612157,1750872651856,-460.0,0.0001726,2]
[367612158,1750872651865,-608.68,0.0001726,2]
[367612159,1750872651876,-1409.86,0.0001726,2]
[367612160,1750872651887,-395.37,0.0001726,2]
[367612161,1750872651896,-823.56,0.0001726,2]
[367612162,1750872651905,-151.0,0.0001726,2]
[367612163,1750872651914,-1035.91,0.0001726,2]
[367612164,1750872651924,-231.96166779,0.0001726,2]
[367612165,1750872651933,-539.32,0.0001726,2]
[367612166,1750872651943,-460.0,0.0001726,2]
[367612167,1750872651952,-151.0,0.0001726,2]
[367612168,1750872651961,-460.0,0.0001726,2]
[367612169,1750872651971,-472.97,0.0001726,2]
[367612170,1750872651980,-1678.89,0.0001726,2]
[367612171,1750872651989,-344.97821184,0.0001726,2]
[367612172,1750872652000,-460.0,0.0001726,2]
[367612173,1750872652010,-151.0,0.0001726,2]
[367612174,1750872652019,-497.29,0.0001726,2]
[367612175,1750872652028,-460.0,0.0001726,2]
[367612176,1750872652038,-503.36,0.0001726,2]
[367612177,1750872652047,-954.13,0.0001726,2]
[367612178,1750872652055,-2662.82,0.0001726,2]
[367612179,1750872652064,-460.0,0.0001726,2]
[367612180,1750872652073,-460.0,0.0001726,2]
[367612181,1750872652082,-799.82,0.0001726,2]
[367612182,1750872652092,-675.08,0.0001726,2]
[367612183,1750872652101,-151.17,0.0001726,2]
[367612184,1750872652110,-460.0,0.0001726,2]
[367612185,1750872652120,-769.54,0.0001726,2]
[367612186,1750872652129,-809.04,0.0001726,2]
[367612187,1750872652139,-1230.8,0.0001726,2]
[367612188,1750872652148,-460.0,0.0001726,2]
[367612189,1750872652158,-460.0,0.0001726,2]
[367612190,1750872652167,-302.48210599,0.0001726,2]
[367612191,1750872652177,-1710.27,0.0001726,2]
[367612192,1750872652187,-631.38,0.0001726,2]
[367612193,1750872652197,-1868.64,0.0001726,2]
[367612194,1750872652207,-460.0,0.0001726,2]
[367612195,1750872652217,-1081.41,0.0001726,2]
[367612196,1750872652226,-460.0,0.0001726,2]
[367612197,1750872652235,-570.06,0.0001726,2]
[367612198,1750872652246,-264.13393791,0.0001726,2]
[367612199,1750872652255,-460.0,0.0001726,2]
[367612200,1750872652264,-460.0,0.0001726,2]
[367612201,1750872652273,-460.0,0.0001726,2]
[367612202,1750872652282,-460.0,0.0001726,2]
[367612203,1750872652292,-460.0,0.0001726,2]
[367612204,1750872652301,-460.0,0.0001726,2]
[367612205,1750872652310,-1055.6,0.0001726,2]
[367612206,1750872652320,-707.38,0.0001726,2]
[367612207,1750872652329,-207.4,0.00017295,2]
[367612208,1750872652339,-5000.0,0.00017295,2]
[367612209,1750872652348,-346.3273908,0.00017418,2]
[367612210,1750872652357,-1358.29567131,0.00017434,2]
[367612211,1750872652366,-4085.61089755,0.00017452,2]
[367612212,1750872652376,-1000.0,0.000175,2]
[367612213,1750872652385,-460.0,0.00017534,2]
[367612214,1750872652394,-392.2,0.00017534,2]
[367612215,1750872652403,-393.35129518,0.00017534,2]
[367612216,1750872652413,-460.0,0.00017534,2]
[367612217,1750872652423,-460.0,0.00017534,2]
[367612218,1750872652432,-460.0,0.00017534,2]
[367612219,1750872652442,-460.0,0.00017534,2]
[367612220,1750872652451,-460.0,0.00017534,2]
[367612221,1750872652460,-460.0,0.00017534,2]
[367612222,1750872652470,-511.46,0.00017534,2]
[367612223,1750872652478,-231.44,0.00017534,2]
[367612224,1750872652487,-460.0,0.00017534,2]
[367612225,1750872652498,-768.57,0.00017534,2]
[367612226,1750872652508,-460.0,0.00017534,2]
[367612227,1750872652517,-759.26,0.00017534,2]
[367612228,1750872652526,-460.0,0.00017534,2]
[367612229,1750872652536,-151.0,0.00017534,2]
[367612230,1750872652545,-1200.78,0.00017534,2]
[367612231,1750872652554,-239.24165,0.00017534,2]
[367612232,1750872652564,-460.0,0.00017534,2]
[367612233,1750872652573,-151.0,0.00017534,2]
[367612234,1750872652583,-460.0,0.00017534,2]
[367612235,1750872652591,-460.0,0.00017534,2]
[367612236,1750872652601,-460.0,0.00017534,2]
[367612237,1750872652610,-460.0,0.00017534,2]
[367612238,1750872652619,-460.0,0.00017534,2]
[367612239,1750872652628,-488.41,0.00017534,2]
[367612240,1750872652638,-460.0,0.00017534,2]
[367612241,1750872652647,-460.0,0.00017534,2]
[367612242,1750872652657,-171.22,0.00017534,2]
[367612243,1750872652666,-460.0,0.00017534,2]
[367612244,1750872652675,-319.81666574,0.00017534,2]
[367612245,1750872652684,-64.01147512,0.00017534,2]
[367612246,1750872652904,-395.98852488,0.00017534,2]
[367612247,1750872652916,-421.93147762,0.00017534,2]
[367612248,1750872652933,-148.79852238,0.00017534,2]
[367612249,1750872652946,-460.0,0.00017534,2]
[367612250,1750872652958,-460.0,0.00017534,2]
[367612251,1750872652968,-439.909036,0.00017534,2]
[367612252,1750872653905,-460.0,0.0001726,2]
[367612253,1750872653916,-42.630964,0.00017534,2]
[367612254,1750872653925,-460.0,0.00017534,2]
[367612255,1750872653934,-460.0,0.00017534,2]
[367612256,1750872653944,-460.0,0.00017534,2]
[367612257,1750872653954,-1855.62,0.00017534,2]
[367612258,1750872653964,-824.46766357,0.00017534,2]
[367612259,1750872653976,-429.00233643,0.00017534,2]
[367612260,1750872653985,-3008.39,0.00017534,2]
[367612261,1750872653994,-517.07,0.00017534,2]
[367612262,1750872654004,-460.0,0.00017534,2]
[367612263,1750872654014,-460.0,0.00017534,2]
[367612264,1750872654024,-460.0,0.00017534,2]
[367612265,1750872654033,-2593.65,0.00017534,2]
[367612266,1750872654043,-1047.33,0.00017534,2]
[367612267,1750872654053,-477.85,0.00017534,2]
[367612268,1750872654062,-572.85,0.00017534,2]
[367612269,1750872654071,-461.15,0.00017534,2]
[367612270,1750872654081,-460.0,0.00017534,2]
[367612271,1750872654090,-3755.75,0.00017534,2]
[367612272,1750872654099,-460.0,0.00017534,2]
[367612273,1750872654109,-460.0,0.00017534,2]
[367612274,1750872654118,-151.0,0.00017534,2]
[367612275,1750872654128,-4122.46,0.00017534,2]
[367612276,1750872654137,-645.89,0.00017534,2]
[367612277,1750872654147,-151.0,0.00017534,2]
[367612278,1750872654157,-567.97,0.00017534,2]
[367612279,1750872654166,-460.0,0.00017534,2]
[367612280,1750872654175,-413.65,0.00017534,2]
[367612281,1750872654185,-307.42,0.00017534,2]
[367612282,1750872654194,-460.0,0.00017534,2]
[367612283,1750872654204,-460.0,0.00017534,2]
[367612284,1750872654213,-517.12,0.00017534,2]
[367612285,1750872654223,-467.6,0.00017534,2]
[367612286,1750872654232,-1700.67,0.00017534,2]
[367612287,1750872654241,-460.0,0.00017534,2]
[367612288,1750872654251,-2709.82,0.00017534,2]
[367612289,1750872654260,-460.0,0.00017534,2]
[367612290,1750872654270,-3209.32,0.00017534,2]
[367612291,1750872654279,-460.0,0.00017534,2]
[367612292,1750872654288,-1072.75,0.00017534,2]
[367612293,1750872654298,-460.0,0.00017534,2]
[367612294,1750872654307,-460.0,0.00017534,2]
[367612295,1750872654318,-3480.43,0.00017534,2]
[367612296,1750872654603,-1565.24,0.00017534,2]
[367612297,1750872654617,-683.63,0.00017534,2]
[367612298,1750872654628,-460.0,0.00017534,2]
[367612299,1750872654637,-460.0,0.00017534,2]
[367612300,1750872654646,-608.68,0.00017534,2]
[367612301,1750872654655,-1409.86,0.00017534,2]
[367612302,1750872654664,-823.56,0.00017534,2]
[367612303,1750872654674,-1035.91,0.00017534,2]
[367612304,1750872654683,-539.32,0.00017534,2]
[367612305,1750872654692,-460.0,0.00017534,2]
[367612306,1750872654701,-274.43094545,0.00017534,2]
[367612307,1750872654768,-151.0,0.00016712,2]
[367612308,1750872654777,-151.0,0.00016986,2]
[367612309,1750872654787,-51.40295353,0.00017534,2]
[367612310,1750872654796,-472.97,0.00017534,2]
[367612311,1750872654805,-1678.89,0.00017534,2]
[367612312,1750872654814,-460.0,0.00017534,2]
[367612313,1750872654823,-497.29,0.00017534,2]
[367612314,1750872654832,-264.12,0.00017534,2]
[367612315,1750872654841,-503.36,0.00017534,2]
[367612316,1750872654850,-954.13,0.00017534,2]
[367612317,1750872654859,-2662.82,0.00017534,2]
[367612318,1750872654869,-460.0,0.00017534,2]
[367612319,1750872654878,-460.0,0.00017534,2]
[367612320,1750872654887,-799.82,0.00017534,2]
[367612321,1750872654897,-675.08,0.00017534,2]
[367612322,1750872654906,-460.0,0.00017534,2]
[367612323,1750872654915,-769.54,0.00017534,2]
[367612324,1750872654925,-809.04,0.00017534,2]
[367612325,1750872654935,-1230.8,0.00017534,2]
[367612326,1750872654944,-460.0,0.00017534,2]
[367612327,1750872654953,-460.0,0.00017534,2]
[367612328,1750872654962,-1710.27,0.00017534,2]
[367612329,1750872654971,-631.38,0.00017534,2]
[367612330,1750872654980,-1868.64,0.00017534,2]
[367612331,1750872654989,-1081.41,0.00017534,2]
[367612332,1750872654998,-460.0,0.00017534,2]
[367612333,1750872655007,-570.06,0.00017534,2]
[367612334,1750872655016,-460.0,0.00017534,2]
[367612335,1750872655025,-460.0,0.00017534,2]
[367612336,1750872655034,-460.0,0.00017534,2]
[367612337,1750872655043,-287.76496417,0.00017534,2]
[367612338,1750872655053,-460.0,0.00017534,2]
[367612339,1750872655063,-460.0,0.00017534,2]
[367612340,1750872655073,-1055.6,0.00017534,2]
[367612341,1750872655082,-707.38,0.00017534,2]
[367612342,1750872655091,-460.0,0.00017534,2]
[367612343,1750872655101,-1000.0,0.00017582,2]
[367612344,1750872655111,-500.0,0.00017582,2]
[367612345,1750872655120,-5290.0,0.00017585,2]
[367612346,1750872655130,-1000.0,0.00017593,2]
[367612347,1750872655139,-203.1307375,0.00017593,2]
[367612348,1750872655149,-1000.0,0.00017593,2]
[367612349,1750872655159,-436.29805676,0.00017615,2]
[367612350,1750872655168,-500.0,0.00017615,2]
[367612351,1750872655178,-511.28541419,0.00017634,2]
[367612352,1750872655187,-500.0,0.00017634,2]
[367612353,1750872655196,-500.0,0.00017634,2]
[367612354,1750872655206,-1000.0,0.00017634,2]
[367612355,1750872655215,-4085.61089755,0.00017728,2]
[367612356,1750872655225,-500.0,0.00017785,2]
[367612357,1750872655234,-500.0,0.00017785,2]
[367612358,1750872655243,-1500.82,0.00017798,3]
[367612359,1750872655252,-750.42,0.00017798,3]
[367612360,1750872655261,-750.42,0.00017798,3]
[367612361,1750872655270,-151.0,0.00017798,2]
[367612362,1750872655280,-151.0,0.00017798,2]
[367612363,1750872655289,-243.937144,0.00017798,2]